[Event "Live Chess"]
[Site "Chess.com"]
[Date "2024.06.02"]
[Round "-"]
[White "TheSmoulderingMaster"]
[Black "matt1979"]
[Result "1-0"]
[WhiteElo "1772"]
[BlackElo "1419"]
[TimeControl "300"]
[EndTime "6:47:27 PDT"]
[Termination "TheSmoulderingMaster won by resignation"]

1. e4 {[%clk 0:04:58]} 1... d6 {[%clk 0:04:58.6]} 2. d4 {[%clk 0:04:56.4]} 2...
Nf6 {[%clk 0:04:56.8]} 3. Nc3 {[%clk 0:04:55.4]} 3... Nbd7 {[%clk 0:04:55.9]} 4.
Nf3 {[%clk 0:04:53.5]} 4... e5 {[%clk 0:04:55.1]} 5. Bg5 {[%clk 0:04:51.5]} 5...
Be7 {[%clk 0:04:53.3]} 6. Bc4 {[%clk 0:04:49.6]} 6... c6 {[%clk 0:04:51.5]} 7.
O-O {[%clk 0:04:47.3]} 7... b5 {[%clk 0:04:49]} 8. Bb3 {[%clk 0:04:46]} 8... a5
{[%clk 0:04:47.9]} 9. a4 {[%clk 0:04:44.3]} 9... b4 {[%clk 0:04:46.6]} 10. dxe5
{[%clk 0:04:39.3]} 10... Nxe5 {[%clk 0:04:41.8]} 11. Nxe5 {[%clk 0:04:38]} 11...
dxe5 {[%clk 0:04:41.1]} 12. Ne2 {[%clk 0:04:36.3]} 12... O-O {[%clk 0:04:38.5]}
13. Ng3 {[%clk 0:04:35]} 13... Qc7 {[%clk 0:04:31.2]} 14. f4 {[%clk 0:04:30.9]}
14... Rd8 {[%clk 0:04:25.6]} 15. Qe2 {[%clk 0:04:28.8]} 15... Qb6+ {[%clk
0:04:12.1]} 16. Kh1 {[%clk 0:04:26]} 16... Qc7 {[%clk 0:03:48.5]} 17. Nh5 {[%clk
0:04:08.3]} 17... Nxh5 {[%clk 0:03:45.8]} 18. Qxh5 {[%clk 0:04:06.5]} 18... Bxg5
{[%clk 0:03:40.2]} 19. fxg5 {[%clk 0:04:04.6]} 19... Ba6 {[%clk 0:03:23.9]} 20.
Rxf7 {[%clk 0:04:01.9]} 20... Kh8 {[%clk 0:03:16.7]} 21. Rxc7 {[%clk 0:03:57.5]}
1-0

[Event "Live Chess"]
[Site "Chess.com"]
[Date "2024.06.02"]
[Round "-"]
[White "mrsmarple1968"]
[Black "McFim"]
[Result "0-1"]
[WhiteElo "1728"]
[BlackElo "1789"]
[TimeControl "300"]
[EndTime "6:48:06 PDT"]
[Termination "McFim won by resignation"]

1. e4 {[%clk 0:04:56.6]} 1... c6 {[%clk 0:04:58.7]} 2. d4 {[%clk 0:04:53.6]}
2... d5 {[%clk 0:04:58.6]} 3. exd5 {[%clk 0:04:52.3]} 3... cxd5 {[%clk
0:04:58.5]} 4. Bd3 {[%clk 0:04:50.9]} 4... Nc6 {[%clk 0:04:58]} 5. c3 {[%clk
0:04:49.3]} 5... Nf6 {[%clk 0:04:56.2]} 6. Nf3 {[%clk 0:04:47.1]} 6... Bg4
{[%clk 0:04:54.7]} 7. Nbd2 {[%clk 0:04:43.5]} 7... e6 {[%clk 0:04:53.6]} 8. O-O
{[%clk 0:04:40.1]} 8... Bd6 {[%clk 0:04:51.7]} 9. Re1 {[%clk 0:04:36.3]} 9...
O-O {[%clk 0:04:50.1]} 10. Nf1 {[%clk 0:04:32.5]} 10... Bh5 {[%clk 0:04:43.9]}
11. Bg5 {[%clk 0:04:16.9]} 11... Bg6 {[%clk 0:04:42.2]} 12. Ne5 {[%clk
0:04:02.9]} 12... Be7 {[%clk 0:04:38.4]} 13. Nxc6 {[%clk 0:03:33.6]} 13... bxc6
{[%clk 0:04:38.3]} 14. Bf4 {[%clk 0:03:23.1]} 14... c5 {[%clk 0:04:35.1]} 15.
Ne3 {[%clk 0:03:07.6]} 15... cxd4 {[%clk 0:04:32.8]} 16. cxd4 {[%clk 0:03:06.1]}
16... Qb6 {[%clk 0:04:30.4]} 17. Bxg6 {[%clk 0:02:57]} 17... hxg6 {[%clk
0:04:27.5]} 18. b3 {[%clk 0:02:55.1]} 18... Bb4 {[%clk 0:04:20.9]} 19. Rf1
{[%clk 0:02:50.6]} 19... Bc3 {[%clk 0:04:18.1]} 20. Be5 {[%clk 0:02:45.7]} 20...
Bxa1 {[%clk 0:04:16]} 21. Qxa1 {[%clk 0:02:42.6]} 21... a5 {[%clk 0:04:11.2]}
22. Rc1 {[%clk 0:02:27.5]} 22... a4 {[%clk 0:04:08.7]} 23. Qb2 {[%clk
0:02:17.8]} 23... axb3 {[%clk 0:04:06.9]} 24. axb3 {[%clk 0:02:17.3]} 24... Ra7
{[%clk 0:03:56.9]} 25. b4 {[%clk 0:02:04.7]} 25... Rb7 {[%clk 0:03:55.8]} 26.
Rb1 {[%clk 0:02:00.4]} 26... Ne4 {[%clk 0:03:44.2]} 27. f3 {[%clk 0:01:52.1]}
27... Nd6 {[%clk 0:03:41.4]} 28. Bxd6 {[%clk 0:01:41.8]} 28... Qxd6 {[%clk
0:03:39.6]} 29. Nc2 {[%clk 0:01:33.3]} 29... Rfb8 {[%clk 0:03:36.9]} 30. Qc3
{[%clk 0:01:28.4]} 30... Rc7 {[%clk 0:03:28.7]} 31. Qd2 {[%clk 0:01:16.6]} 31...
Qc6 {[%clk 0:03:25.5]} 32. Ne3 {[%clk 0:01:14]} 32... Qa4 {[%clk 0:02:44.3]} 33.
Rb2 {[%clk 0:00:56.6]} 33... Rbc8 {[%clk 0:02:30.4]} 34. Kf2 {[%clk 0:00:53]}
34... Rb7 {[%clk 0:02:23.4]} 35. Nc2 {[%clk 0:00:23.6]} 35... Rc4 {[%clk
0:02:07.2]} 36. b5 {[%clk 0:00:13.7]} 36... Rbc7 {[%clk 0:01:58.1]} 37. b6
{[%clk 0:00:11.7]} 37... Rxc2 {[%clk 0:01:54.6]} 38. b7 {[%clk 0:00:09.1]} 38...
Rxd2+ {[%clk 0:01:53]} 39. Rxd2 {[%clk 0:00:07.5]} 39... Rxb7 {[%clk 0:01:51.8]}
0-1

[Event "Live Chess"]
[Site "Chess.com"]
[Date "2024.06.02"]
[Round "-"]
[White "Larchikov"]
[Black "missedJariChance"]
[Result "1-0"]
[WhiteElo "2043"]
[BlackElo "1384"]
[TimeControl "300"]
[EndTime "6:48:17 PDT"]
[Termination "Larchikov won by resignation"]

1. e4 {[%clk 0:04:56.8]} 1... c5 {[%clk 0:04:58.8]} 2. f4 {[%clk 0:04:55.9]}
2... e6 {[%clk 0:04:54.3]} 3. Nf3 {[%clk 0:04:54.8]} 3... Nc6 {[%clk 0:04:53.2]}
4. Bb5 {[%clk 0:04:53.2]} 4... Qc7 {[%clk 0:04:50.8]} 5. d4 {[%clk 0:04:48.3]}
5... cxd4 {[%clk 0:04:48.6]} 6. Nxd4 {[%clk 0:04:26.5]} 6... Be7 {[%clk
0:04:36.7]} 7. Be3 {[%clk 0:04:16.2]} 7... Nf6 {[%clk 0:04:31.6]} 8. Nc3 {[%clk
0:04:07.4]} 8... O-O {[%clk 0:04:26.6]} 9. O-O {[%clk 0:04:03.4]} 9... Nxd4
{[%clk 0:04:17]} 10. Bxd4 {[%clk 0:03:57]} 10... Bc5 {[%clk 0:04:15.6]} 11. Kh1
{[%clk 0:03:49.6]} 11... a6 {[%clk 0:04:07]} 12. Be2 {[%clk 0:03:41.6]} 12...
Bxd4 {[%clk 0:04:01.8]} 13. Qxd4 {[%clk 0:03:41.5]} 13... h6 {[%clk 0:03:51.2]}
14. e5 {[%clk 0:03:30.8]} 14... Nh7 {[%clk 0:03:33.4]} 15. Bf3 {[%clk
0:03:21.7]} 15... f6 {[%clk 0:03:29.3]} 16. Rad1 {[%clk 0:03:17]} 16... fxe5
{[%clk 0:03:25.6]} 17. fxe5 {[%clk 0:03:16.1]} 17... Ng5 {[%clk 0:03:19.7]} 18.
Bh5 {[%clk 0:03:09.4]} 18... b5 {[%clk 0:02:59.7]} 19. Rxf8+ {[%clk 0:03:04.9]}
19... Kxf8 {[%clk 0:02:58]} 20. Qf4+ {[%clk 0:02:59.6]} 20... Kg8 {[%clk
0:02:56.1]} 21. h4 {[%clk 0:02:57.7]} 21... Qc4 {[%clk 0:02:28.1]} 22. Qxc4
{[%clk 0:02:51.7]} 22... bxc4 {[%clk 0:02:24.1]} 23. hxg5 {[%clk 0:02:50.1]} 1-0

[Event "Live Chess"]
[Site "Chess.com"]
[Date "2024.06.02"]
[Round "-"]
[White "agamilewska"]
[Black "Val1024"]
[Result "0-1"]
[WhiteElo "1755"]
[BlackElo "1748"]
[TimeControl "300"]
[EndTime "6:48:18 PDT"]
[Termination "Val1024 won by resignation"]

1. d4 {[%clk 0:04:57.8]} 1... d5 {[%clk 0:04:55.7]} 2. c4 {[%clk 0:04:57]} 2...
c6 {[%clk 0:04:54.2]} 3. e3 {[%clk 0:04:56.4]} 3... Nf6 {[%clk 0:04:53.5]} 4.
Nc3 {[%clk 0:04:56]} 4... g6 {[%clk 0:04:53]} 5. Nf3 {[%clk 0:04:55.3]} 5... Bg7
{[%clk 0:04:52.5]} 6. cxd5 {[%clk 0:04:54.5]} 6... cxd5 {[%clk 0:04:50.8]} 7.
Bb5+ {[%clk 0:04:53.5]} 7... Nc6 {[%clk 0:04:50.2]} 8. O-O {[%clk 0:04:50.3]}
8... O-O {[%clk 0:04:48.4]} 9. Bxc6 {[%clk 0:04:48.9]} 9... bxc6 {[%clk
0:04:46.9]} 10. Ne5 {[%clk 0:04:48.8]} 10... Qb6 {[%clk 0:04:44.2]} 11. b3
{[%clk 0:04:44.7]} 11... Bf5 {[%clk 0:04:39.3]} 12. Ba3 {[%clk 0:04:43.2]} 12...
Rfe8 {[%clk 0:04:36.8]} 13. Rc1 {[%clk 0:04:39.8]} 13... Ne4 {[%clk 0:04:21.5]}
14. Nxe4 {[%clk 0:04:36.3]} 14... Bxe4 {[%clk 0:04:17.3]} 15. Nxc6 {[%clk
0:04:30.3]} 15... Qb7 {[%clk 0:04:15.8]} 16. Ne5 {[%clk 0:04:01.8]} 16... Rac8
{[%clk 0:04:00.2]} 17. Rxc8 {[%clk 0:03:58.9]} 17... Rxc8 {[%clk 0:03:59.6]} 18.
f3 {[%clk 0:03:50.1]} 18... Bf5 {[%clk 0:03:54.8]} 19. g4 {[%clk 0:03:44]} 19...
Be6 {[%clk 0:03:50.8]} 20. Qd2 {[%clk 0:03:40]} 20... f6 {[%clk 0:03:41.7]} 21.
Nd3 {[%clk 0:03:36.2]} 21... h5 {[%clk 0:03:40]} 22. Nc5 {[%clk 0:03:34.3]}
22... Qb6 {[%clk 0:03:31.4]} 23. Nxe6 {[%clk 0:03:27.4]} 23... Qxe6 {[%clk
0:03:30.6]} 24. gxh5 {[%clk 0:03:21.9]} 24... gxh5 {[%clk 0:03:27.6]} 25. Qg2
{[%clk 0:03:20.4]} 25... Kf7 {[%clk 0:03:24.3]} 26. Qd2 {[%clk 0:03:06.5]} 26...
Bh6 {[%clk 0:03:23.1]} 27. f4 {[%clk 0:02:54.1]} 27... Rg8+ {[%clk 0:03:21.8]}
28. Kf2 {[%clk 0:02:45.5]} 28... Qh3 {[%clk 0:03:21.1]} 29. Ke1 {[%clk 0:02:37]}
29... Rg2 {[%clk 0:03:18.6]} 30. Rf2 {[%clk 0:02:08.6]} 30... Rg1+ {[%clk
0:03:16.1]} 31. Ke2 {[%clk 0:02:07.2]} 31... Qg4+ {[%clk 0:02:47.6]} 32. Kd3
{[%clk 0:02:06.3]} 32... Qf5+ {[%clk 0:02:46.4]} 33. Kc3 {[%clk 0:02:01.2]}
33... Qb1 {[%clk 0:02:34]} 34. Qc2 {[%clk 0:01:54.8]} 34... Qe1+ {[%clk
0:02:27.6]} 35. Rd2 {[%clk 0:01:54.1]} 35... Qxe3+ {[%clk 0:02:25.5]} 36. Qd3
{[%clk 0:01:44.9]} 36... Qxf4 {[%clk 0:02:04.5]} 37. Qh7+ {[%clk 0:01:40.5]}
37... Rg7 {[%clk 0:02:01.1]} 38. Qd3 {[%clk 0:01:36.6]} 38... Qxd2+ {[%clk
0:01:59.6]} 39. Qxd2 {[%clk 0:01:32.4]} 39... Bxd2+ {[%clk 0:01:58.9]} 40. Kxd2
{[%clk 0:01:31.7]} 40... Rg2+ {[%clk 0:01:58.4]} 41. Kc3 {[%clk 0:01:26.3]}
41... Rxh2 {[%clk 0:01:56.1]} 42. Bb2 {[%clk 0:01:23.8]} 42... h4 {[%clk
0:01:54.2]} 43. a4 {[%clk 0:01:21.3]} 43... h3 {[%clk 0:01:53.6]} 44. Bc1 {[%clk
0:01:19.6]} 44... Rg2 {[%clk 0:01:45.1]} 45. Bf4 {[%clk 0:01:17.8]} 45... h2
{[%clk 0:01:44.5]} 46. Bxh2 {[%clk 0:01:16.6]} 46... Rxh2 {[%clk 0:01:44.1]} 47.
b4 {[%clk 0:01:15]} 47... Rh3+ {[%clk 0:01:40.3]} 0-1

[Event "Live Chess"]
[Site "Chess.com"]
[Date "2024.06.02"]
[Round "-"]
[White "Ferrarifan27"]
[Black "DoctorMantisTobogganMD"]
[Result "0-1"]
[WhiteElo "2130"]
[BlackElo "2209"]
[TimeControl "300"]
[EndTime "6:48:25 PDT"]
[Termination "DoctorMantisTobogganMD won by resignation"]

1. e4 {[%clk 0:04:58.3]} 1... c6 {[%clk 0:04:58.7]} 2. d4 {[%clk 0:04:56.6]}
2... g6 {[%clk 0:04:57.9]} 3. Nf3 {[%clk 0:04:54.8]} 3... Bg7 {[%clk 0:04:57.2]}
4. Nc3 {[%clk 0:04:53.3]} 4... d5 {[%clk 0:04:56.4]} 5. e5 {[%clk 0:04:48.3]}
5... Bg4 {[%clk 0:04:55.2]} 6. h3 {[%clk 0:04:46.9]} 6... Bxf3 {[%clk
0:04:53.7]} 7. Qxf3 {[%clk 0:04:46.8]} 7... e6 {[%clk 0:04:53]} 8. Be3 {[%clk
0:04:42.9]} 8... Nd7 {[%clk 0:04:52]} 9. Bd3 {[%clk 0:04:37.6]} 9... a6 {[%clk
0:04:51.2]} 10. Qg3 {[%clk 0:04:33.5]} 10... c5 {[%clk 0:04:49]} 11. f4 {[%clk
0:04:31.9]} 11... c4 {[%clk 0:04:36.4]} 12. Be2 {[%clk 0:04:30.7]} 12... h5
{[%clk 0:04:34.5]} 13. O-O {[%clk 0:04:26.8]} 13... Ne7 {[%clk 0:04:33.7]} 14.
Qf2 {[%clk 0:04:24.7]} 14... h4 {[%clk 0:04:30.9]} 15. Bg4 {[%clk 0:04:22.6]}
15... b5 {[%clk 0:04:28.1]} 16. a3 {[%clk 0:04:20.8]} 16... Rb8 {[%clk
0:04:26.2]} 17. Qe1 {[%clk 0:04:04.1]} 17... Nf5 {[%clk 0:04:24.5]} 18. Bxf5
{[%clk 0:03:59.9]} 18... gxf5 {[%clk 0:04:24.4]} 19. Qe2 {[%clk 0:03:52.4]}
19... Bf8 {[%clk 0:04:22.3]} 20. Bf2 {[%clk 0:03:48.7]} 20... Be7 {[%clk
0:04:21.1]} 21. Nd1 {[%clk 0:03:44.8]} 21... Nf8 {[%clk 0:04:15.6]} 22. Ne3
{[%clk 0:03:43.8]} 22... Ng6 {[%clk 0:04:14.4]} 23. Qf3 {[%clk 0:03:41.5]} 23...
a5 {[%clk 0:04:10.4]} 24. c3 {[%clk 0:03:40.7]} 24... Qb6 {[%clk 0:04:08.2]} 25.
Rfb1 {[%clk 0:03:34]} 25... a4 {[%clk 0:04:01.3]} 26. Nc2 {[%clk 0:03:31.1]}
26... Qb7 {[%clk 0:03:59.1]} 27. Ne3 {[%clk 0:03:28.1]} 27... Kd7 {[%clk
0:03:56.5]} 28. Re1 {[%clk 0:03:22.1]} 28... Rbg8 {[%clk 0:03:50.6]} 29. Rad1
{[%clk 0:03:19.8]} 29... Kc8 {[%clk 0:03:44]} 30. Kf1 {[%clk 0:03:15.3]} 30...
Bf8 {[%clk 0:03:40.1]} 31. Ke2 {[%clk 0:03:13.5]} 31... Bh6 {[%clk 0:03:38.5]}
32. g3 {[%clk 0:03:04.7]} 32... hxg3 {[%clk 0:03:37.1]} 33. Bxg3 {[%clk
0:03:04.6]} 33... Bf8 {[%clk 0:03:34.8]} 34. Rh1 {[%clk 0:02:59.7]} 34... Nh4
{[%clk 0:03:21.5]} 35. Qf2 {[%clk 0:02:58.5]} 35... Be7 {[%clk 0:03:19.8]} 36.
Rdg1 {[%clk 0:02:56.4]} 36... Kd7 {[%clk 0:03:11.1]} 37. Bxh4 {[%clk 0:02:53]}
37... Bxh4 {[%clk 0:03:09.8]} 38. Rxg8 {[%clk 0:02:51.5]} 38... Bxf2 {[%clk
0:03:07.6]} 39. Rxh8 {[%clk 0:02:50.8]} 39... Bxe3 {[%clk 0:03:06.7]} 40. Kxe3
{[%clk 0:02:49.5]} 40... b4 {[%clk 0:03:02.6]} 41. axb4 {[%clk 0:02:47.9]} 41...
a3 {[%clk 0:03:01.8]} 42. bxa3 {[%clk 0:02:46.3]} 42... Qa6 {[%clk 0:03:01.3]}
43. Rg8 {[%clk 0:02:21.3]} 43... Qxa3 {[%clk 0:02:59.8]} 44. Rgg1 {[%clk
0:02:08.3]} 44... Qxc3+ {[%clk 0:02:58.5]} 45. Ke2 {[%clk 0:02:07.7]} 45... Qd3+
{[%clk 0:02:57.4]} 46. Kf2 {[%clk 0:02:06.2]} 46... Qxd4+ {[%clk 0:02:56.3]} 47.
Kg3 {[%clk 0:02:05.6]} 47... Qe3+ {[%clk 0:02:53.6]} 48. Kh4 {[%clk 0:02:04.5]}
48... Qxf4+ {[%clk 0:02:50]} 49. Kh5 {[%clk 0:02:03.8]} 49... d4 {[%clk
0:02:44.5]} 50. b5 {[%clk 0:01:59.5]} 50... d3 {[%clk 0:02:41.5]} 51. b6 {[%clk
0:01:57.8]} 51... Kc6 {[%clk 0:02:40.4]} 52. Rb1 {[%clk 0:01:54.4]} 52... Kb7
{[%clk 0:02:38.5]} 53. Rhg1 {[%clk 0:01:43.9]} 53... d2 {[%clk 0:02:29.5]} 54.
h4 {[%clk 0:01:41.7]} 54... c3 {[%clk 0:02:26.5]} 55. Rbf1 {[%clk 0:01:39.1]}
55... Qxf1 {[%clk 0:02:19.2]} 56. Rxf1 {[%clk 0:01:37.5]} 56... c2 {[%clk
0:02:18.7]} 57. Kg5 {[%clk 0:01:31.3]} 57... c1=Q {[%clk 0:02:17]} 58. Rxc1
{[%clk 0:01:30.4]} 58... dxc1=Q+ {[%clk 0:02:16.1]} 59. Kf6 {[%clk 0:01:29.9]}
59... Kxb6 {[%clk 0:02:14.7]} 60. Kxf7 {[%clk 0:01:28.1]} 60... Qh6 {[%clk
0:02:12.7]} 61. h5 {[%clk 0:01:25.8]} 61... Kc6 {[%clk 0:02:11.7]} 62. Ke7
{[%clk 0:01:24.5]} 62... Kd5 {[%clk 0:02:11.6]} 0-1

[Event "Live Chess"]
[Site "Chess.com"]
[Date "2024.06.02"]
[Round "-"]
[White "Frankie_Badacsonyi"]
[Black "MagnersCarlsberg2870"]
[Result "1-0"]
[WhiteElo "2381"]
[BlackElo "1781"]
[TimeControl "300"]
[EndTime "6:48:30 PDT"]
[Termination "Frankie_Badacsonyi won by resignation"]

1. e4 {[%clk 0:04:58.3]} 1... d5 {[%clk 0:04:56.8]} 2. exd5 {[%clk 0:04:55.5]}
2... Nf6 {[%clk 0:04:55.8]} 3. Nc3 {[%clk 0:04:55]} 3... Nxd5 {[%clk 0:04:54.3]}
4. Nxd5 {[%clk 0:04:54.3]} 4... Qxd5 {[%clk 0:04:53.2]} 5. Nf3 {[%clk
0:04:53.9]} 5... Bg4 {[%clk 0:04:52]} 6. Be2 {[%clk 0:04:52.6]} 6... Qh5 {[%clk
0:04:50.7]} 7. d3 {[%clk 0:04:44.6]} 7... e6 {[%clk 0:04:49.7]} 8. Bf4 {[%clk
0:04:42.8]} 8... Bd6 {[%clk 0:04:47.2]} 9. Bxd6 {[%clk 0:04:41.1]} 9... cxd6
{[%clk 0:04:46.4]} 10. Qd2 {[%clk 0:04:40.5]} 10... a5 {[%clk 0:04:44.2]} 11. h3
{[%clk 0:04:34.2]} 11... a4 {[%clk 0:04:42.3]} 12. Qb4 {[%clk 0:04:30.3]} 12...
a3 {[%clk 0:04:36.7]} 13. Qxg4 {[%clk 0:04:22.1]} 1-0

[Event "Live Chess"]
[Site "Chess.com"]
[Date "2024.06.02"]
[Round "-"]
[White "peteopeteo"]
[Black "Nazar-Makarchuk"]
[Result "0-1"]
[WhiteElo "1541"]
[BlackElo "1491"]
[TimeControl "300"]
[EndTime "6:49:07 PDT"]
[Termination "Nazar-Makarchuk won by resignation"]

1. e4 {[%clk 0:04:58.5]} 1... d6 {[%clk 0:04:59.2]} 2. d4 {[%clk 0:04:57.7]}
2... e5 {[%clk 0:04:57.9]} 3. dxe5 {[%clk 0:04:57.2]} 3... dxe5 {[%clk
0:04:56.8]} 4. Qxd8+ {[%clk 0:04:55.9]} 4... Kxd8 {[%clk 0:04:56.2]} 5. Nf3
{[%clk 0:04:54.6]} 5... Nc6 {[%clk 0:04:55.7]} 6. Bc4 {[%clk 0:04:53.6]} 6...
Be6 {[%clk 0:04:54.2]} 7. Bxe6 {[%clk 0:04:50]} 7... fxe6 {[%clk 0:04:53.3]} 8.
Nc3 {[%clk 0:04:47.9]} 8... Nf6 {[%clk 0:04:52.5]} 9. O-O {[%clk 0:04:46.9]}
9... Bb4 {[%clk 0:04:52]} 10. Nxe5 {[%clk 0:04:27.5]} 10... Nxe5 {[%clk
0:04:50]} 11. Bg5 {[%clk 0:04:25.3]} 11... Bxc3 {[%clk 0:04:48.7]} 12. bxc3
{[%clk 0:04:24.1]} 12... Nf7 {[%clk 0:04:47.6]} 13. Bf4 {[%clk 0:04:21.3]} 13...
Nxe4 {[%clk 0:04:44.8]} 14. Rfd1+ {[%clk 0:04:19.8]} 14... Ned6 {[%clk 0:04:43]}
15. c4 {[%clk 0:04:18.1]} 15... b6 {[%clk 0:04:41.6]} 16. Rab1 {[%clk 0:04:12]}
16... Ke7 {[%clk 0:04:40.6]} 17. Rd4 {[%clk 0:04:05.2]} 17... e5 {[%clk
0:04:37.1]} 18. Re1 {[%clk 0:04:04.3]} 18... Kf6 {[%clk 0:04:32.5]} 19. Rd3
{[%clk 0:03:50.7]} 19... exf4 {[%clk 0:04:30.9]} 20. Rf3 {[%clk 0:03:49.8]}
20... g5 {[%clk 0:04:27.9]} 21. g3 {[%clk 0:03:48.3]} 21... Ne5 {[%clk
0:04:23.8]} 22. Rb3 {[%clk 0:03:42.3]} 22... fxg3 {[%clk 0:04:20.5]} 23. hxg3
{[%clk 0:03:41.1]} 23... Rhe8 {[%clk 0:04:16.9]} 24. f4 {[%clk 0:03:33.2]} 24...
Nexc4 {[%clk 0:04:13.6]} 25. Rf1 {[%clk 0:03:29.6]} 25... Nd2 {[%clk 0:04:09.2]}
26. fxg5+ {[%clk 0:03:28.9]} 26... Kxg5 {[%clk 0:04:07.3]} 0-1

[Event "Live Chess"]
[Site "Chess.com"]
[Date "2024.06.02"]
[Round "-"]
[White "ACM42"]
[Black "Tatarinov_Maxim"]
[Result "1-0"]
[WhiteElo "2214"]
[BlackElo "2284"]
[TimeControl "300"]
[EndTime "6:49:16 PDT"]
[Termination "ACM42 won on time"]

1. e4 {[%clk 0:04:58.7]} 1... c5 {[%clk 0:04:58.6]} 2. Nf3 {[%clk 0:04:57.8]}
2... g6 {[%clk 0:04:57.3]} 3. d4 {[%clk 0:04:56.8]} 3... cxd4 {[%clk 0:04:56.1]}
4. Nxd4 {[%clk 0:04:56.7]} 4... Bg7 {[%clk 0:04:54.8]} 5. Be3 {[%clk 0:04:55.9]}
5... Nc6 {[%clk 0:04:53.7]} 6. Nc3 {[%clk 0:04:55.2]} 6... Nf6 {[%clk
0:04:53.2]} 7. Nxc6 {[%clk 0:04:54.5]} 7... bxc6 {[%clk 0:04:52]} 8. e5 {[%clk
0:04:54.4]} 8... Nd5 {[%clk 0:04:49.5]} 9. Nxd5 {[%clk 0:04:52.9]} 9... cxd5
{[%clk 0:04:49.4]} 10. Qxd5 {[%clk 0:04:52.4]} 10... Rb8 {[%clk 0:04:48.6]} 11.
Bd4 {[%clk 0:04:51.5]} 11... O-O {[%clk 0:04:37.3]} 12. O-O-O {[%clk 0:04:44.4]}
12... Bb7 {[%clk 0:04:33.8]} 13. Qc5 {[%clk 0:04:41]} 13... Bc6 {[%clk
0:04:29.8]} 14. f3 {[%clk 0:04:30.4]} 14... Rb7 {[%clk 0:04:01.1]} 15. Ba6
{[%clk 0:04:28.5]} 15... Rc7 {[%clk 0:03:55.9]} 16. Qa3 {[%clk 0:04:18.4]} 16...
Qb8 {[%clk 0:03:43.4]} 17. Rhe1 {[%clk 0:04:15]} 17... Bb5 {[%clk 0:03:27.6]}
18. Bxb5 {[%clk 0:04:04.9]} 18... Qxb5 {[%clk 0:03:27.5]} 19. Qxe7 {[%clk
0:04:01.4]} 19... Qc4 {[%clk 0:03:16.8]} 20. c3 {[%clk 0:03:49.4]} 20... Qxa2
{[%clk 0:03:15.6]} 21. Qa3 {[%clk 0:03:41.3]} 21... Qc4 {[%clk 0:03:07.5]} 22.
Kb1 {[%clk 0:03:13.6]} 22... Rb8 {[%clk 0:03:02.3]} 23. Re4 {[%clk 0:02:16.3]}
23... Rcb7 {[%clk 0:01:37.8]} 24. Rd2 {[%clk 0:02:10.1]} 24... Qc7 {[%clk
0:01:34.3]} 25. f4 {[%clk 0:01:59.4]} 25... Bf8 {[%clk 0:01:20.4]} 26. Qa4
{[%clk 0:01:46.1]} 26... a5 {[%clk 0:00:41.5]} 27. Re3 {[%clk 0:01:21.5]} 27...
Rb3 {[%clk 0:00:38.1]} 28. e6 {[%clk 0:01:04.4]} 28... Qb7 {[%clk 0:00:24.1]}
29. exf7+ {[%clk 0:00:45.9]} 29... Kxf7 {[%clk 0:00:24]} 30. c4 {[%clk
0:00:42.3]} 30... Ba3 {[%clk 0:00:16.3]} 31. Rxb3 {[%clk 0:00:40]} 31... Qxb3
{[%clk 0:00:15.4]} 32. Qxd7+ {[%clk 0:00:35.7]} 32... Be7 {[%clk 0:00:14.5]} 33.
Qd5+ {[%clk 0:00:30.9]} 33... Kf8 {[%clk 0:00:13.9]} 34. Bc3 {[%clk 0:00:29.4]}
34... a4 {[%clk 0:00:12.6]} 35. c5 {[%clk 0:00:26.7]} 35... Qxd5 {[%clk
0:00:10.6]} 36. Rxd5 {[%clk 0:00:25.6]} 36... a3 {[%clk 0:00:10.5]} 37. Ka2
{[%clk 0:00:24]} 37... axb2 {[%clk 0:00:09.8]} 38. Bxb2 {[%clk 0:00:23.2]} 38...
Rb5 {[%clk 0:00:09.2]} 39. Bd4 {[%clk 0:00:21.7]} 39... Kf7 {[%clk 0:00:08.1]}
40. Ka3 {[%clk 0:00:20.8]} 40... Ke6 {[%clk 0:00:07.4]} 41. Re5+ {[%clk
0:00:19.7]} 41... Kd7 {[%clk 0:00:06]} 42. Ka4 {[%clk 0:00:19.6]} 42... Rb8
{[%clk 0:00:04.7]} 43. Be3 {[%clk 0:00:18]} 43... Ra8+ {[%clk 0:00:04.1]} 44.
Kb4 {[%clk 0:00:16.9]} 44... Bf6 {[%clk 0:00:04]} 45. Rd5+ {[%clk 0:00:15.7]}
45... Kc6 {[%clk 0:00:03.3]} 46. Rd6+ {[%clk 0:00:15.6]} 46... Kc7 {[%clk
0:00:02.8]} 47. Rxf6 {[%clk 0:00:15.3]} 47... Rb8+ {[%clk 0:00:02.5]} 48. Kc4
{[%clk 0:00:14.2]} 48... Rb1 {[%clk 0:00:01.9]} 49. Rf7+ {[%clk 0:00:14.1]}
49... Kc6 {[%clk 0:00:01.5]} 50. Rxh7 {[%clk 0:00:14]} 50... Rc1+ {[%clk
0:00:00.1]} 51. Kd3 {[%clk 0:00:13.3]} 1-0

[Event "Live Chess"]
[Site "Chess.com"]
[Date "2024.06.02"]
[Round "-"]
[White "resipsa6"]
[Black "GerardATHart"]
[Result "1-0"]
[WhiteElo "2020"]
[BlackElo "1361"]
[TimeControl "300"]
[EndTime "6:49:30 PDT"]
[Termination "resipsa6 won by checkmate"]

1. e4 {[%clk 0:04:58.9]} 1... e5 {[%clk 0:04:58]} 2. Nf3 {[%clk 0:04:58.3]} 2...
Nc6 {[%clk 0:04:56.6]} 3. d4 {[%clk 0:04:57.9]} 3... exd4 {[%clk 0:04:51.4]} 4.
Nxd4 {[%clk 0:04:57.8]} 4... Bc5 {[%clk 0:04:49.5]} 5. Nxc6 {[%clk 0:04:56.6]}
5... bxc6 {[%clk 0:04:47.1]} 6. Bd3 {[%clk 0:04:52.1]} 6... Ne7 {[%clk
0:04:45.2]} 7. O-O {[%clk 0:04:51.5]} 7... O-O {[%clk 0:04:42.2]} 8. Qh5 {[%clk
0:04:50.1]} 8... Ng6 {[%clk 0:04:40.6]} 9. Qxc5 {[%clk 0:04:49]} 9... Bb7 {[%clk
0:04:16.6]} 10. Nc3 {[%clk 0:04:46.9]} 10... d6 {[%clk 0:04:14.8]} 11. Qe3
{[%clk 0:04:43.2]} 11... d5 {[%clk 0:04:07.3]} 12. exd5 {[%clk 0:04:41.9]} 12...
cxd5 {[%clk 0:04:05.2]} 13. Qg3 {[%clk 0:04:41.6]} 13... d4 {[%clk 0:03:59]} 14.
Ne4 {[%clk 0:04:37.6]} 14... Qd5 {[%clk 0:03:40.8]} 15. Ng5 {[%clk 0:04:20.6]}
15... h6 {[%clk 0:03:10]} 16. Be4 {[%clk 0:04:17.3]} 16... Qb5 {[%clk
0:03:04.3]} 17. Bxb7 {[%clk 0:04:14.1]} 17... Qxb7 {[%clk 0:03:01.1]} 18. Nxf7
{[%clk 0:04:12.1]} 18... Kxf7 {[%clk 0:02:55.1]} 19. b3 {[%clk 0:03:38.6]} 19...
Qc6 {[%clk 0:02:44.2]} 20. Bb2 {[%clk 0:03:33.9]} 20... Rad8 {[%clk 0:02:29.4]}
21. Rad1 {[%clk 0:03:32.5]} 21... Qxc2 {[%clk 0:02:21.2]} 22. Bxd4 {[%clk
0:03:29.9]} 22... c5 {[%clk 0:02:19.5]} 23. Qc7+ {[%clk 0:03:26]} 23... Kg8
{[%clk 0:02:13.7]} 24. Qxg7# {[%clk 0:03:24.4]} 1-0